bitfinex-derivatives/quotes_ETHF0:USTF0_20250507
["timestamp","ask_amount","ask_price","bid_price","bid_amount"]
[1746576845267,3.2078,1818.0,1817.9,1.10022]
[1746576846068,4.30796,1818.0,1817.9,1.10022]
[1746576846756,3.2078,1818.0,1817.9,1.10022]
[1746576848168,4.30796,1818.0,1817.9,1.10022]
[1746576848670,1.10015,1818.1,1818.0,1.10014]
[1746576849770,4.30789,1818.2,1818.0,1.10014]
[1746576849969,4.30789,1818.2,1818.1,1.1001]
[1746576850471,1.1001,1818.1,1818.0,1.1001]
[1746576850768,4.30787,1818.2,1818.1,1.1001]
[1746576850968,4.30787,1818.2,1817.8,12.2038]
[1746576850969,1.10011,1818.1,1818.0,1.1001]
[1746576853369,1.10021,1818.0,1817.9,1.10019]
[1746576853571,4.30801,1818.0,1817.9,1.10019]
[1746576854673,4.30801,1818.0,1817.9,5.15919]
[1746576854865,3.2078,1818.0,1817.9,6.86469]
[1746576856773,4.30796,1818.0,1817.9,6.86469]
[1746576857074,3.2078,1818.0,1817.9,6.86469]
[1746576858078,3.2078,1818.2,1818.1,1.1001]
[1746576858369,1.90001,1818.5,1818.4,1.09992]
[1746576858570,1.09984,1818.6,1818.5,1.09986]
[1746576859075,1.09984,1818.6,1818.5,41.89986]
[1746576859475,1.09984,1818.6,1818.5,40.8]
[1746576860176,1.09984,1818.6,1818.5,41.89986]
[1746576860677,1.09984,1818.6,1818.5,40.8]
[1746576860974,2.77964,1818.6,1818.5,42.4151]
[1746576861177,2.77964,1818.6,1818.5,43.51496]
[1746576862471,1.09984,1818.6,1818.5,43.51496]
[1746576864280,1.09984,1818.6,1818.5,42.4151]
[1746576864580,1.09984,1818.6,1818.5,43.51496]
[1746576864875,1.09984,1818.6,1818.5,42.4151]
[1746576868281,1.09984,1818.6,1818.5,43.51496]
[1746576868583,6.04269,1818.7,1818.5,43.51496]
[1746576868880,5.3947,1818.8,1818.7,1.09972]
[1746576868881,1.09968,1818.8,1818.7,1.09972]
[1746576869085,4.30742,1818.9,1818.8,1.09968]
[1746576869273,3.6183,1819.0,1818.9,1.09962]
[1746576869478,1.09962,1818.9,1818.8,2.82763]
[1746576869681,1.09962,1818.9,1818.8,43.62763]
[1746576870185,1.9243,1819.0,1818.9,1.09962]
[1746576870383,1.09947,1819.2,1818.9,1.728]
[1746576870589,2.5636,1819.3,1819.0,1.90411]
[1746576870786,1.09949,1819.2,1819.1,2.82749]
[1746576871485,1.969,1819.3,1819.2,1.09943]
[1746576871692,1.09935,1819.4,1819.3,1.09937]
[1746576872081,1.09935,1819.4,1819.3,42.4593]
[1746576872281,1.09935,1819.4,1819.3,43.55867]
[1746576872486,1.09935,1819.4,1819.3,42.4593]
[1746576878297,1.09927,1819.5,1819.3,42.4593]
[1746576878501,1.91639,1819.6,1819.4,1.6336]
[1746576878800,1.91639,1819.6,1819.4,4.38398]
[1746576878995,1.09925,1819.5,1819.4,4.38398]
[1746576879195,1.09925,1819.5,1819.4,43.55038]
[1746576881500,85.33586417,1819.7,1819.4,49.7179]
[1746576881698,74.2696248,1819.7,1819.6,4.30699]
[1746576882000,51.82282,1819.7,1819.6,12.90099]
[1746576882199,50.19407,1819.7,1819.6,18.32072842]
[1746576882400,46.95664,1819.7,1819.6,59.12072842]
[1746576882699,45.29544,1819.7,1819.6,59.12072842]
[1746576883096,44.04913,1819.7,1819.6,59.12072842]
[1746576884499,24.7436952,1819.7,1819.6,59.12072842]
[1746576886709,16.60221466,1819.7,1819.6,59.12072842]
[1746576887506,16.60221466,1819.7,1819.6,58.64672842]
[1746576889107,15.38957466,1819.7,1819.6,58.64672842]
[1746576889604,13.74711466,1819.7,1819.6,49.16599]
[1746576889809,13.74711466,1819.7,1819.6,53.69999]
[1746576893113,13.74711466,1819.7,1819.6,54.10770263]
[1746576894906,13.74711466,1819.7,1819.6,55.78410263]
[1746576898412,12.60470466,1819.7,1819.6,55.78410263]
[1746576898617,0.885,1820.2,1820.1,1.09889]
[1746576898916,2.6098,1820.3,1820.2,1.09883]
[1746576898917,1.09879,1820.3,1820.2,1.09883]
[1746576899117,1.7173,1820.6,1820.5,1.09865]
[1746576899414,1.09861,1820.6,1820.5,1.09865]
[1746576899713,5.0,1820.6,1820.4,4.525]
[1746576899912,6.09861,1820.6,1820.5,1.0986]
[1746576900213,1.09861,1820.6,1820.5,1.0986]
[1746576900408,5.0,1820.6,1820.4,4.525]
[1746576900611,1.09864,1820.6,1820.5,1.09863]
[1746576900910,1.09865,1820.5,1820.4,5.62366]
[1746576901316,6.09865,1820.5,1820.4,5.62366]
[1746576902117,1.09865,1820.5,1820.4,5.62366]
[1746576902312,6.09865,1820.5,1820.4,5.62366]
[1746576903412,6.09865,1820.5,1820.4,4.525]
[1746576903611,5.0,1820.5,1820.4,5.62371]
[1746576903813,2.78606,1820.7,1820.6,1.09859]
[1746576904311,1.6875,1820.7,1820.6,1.09859]
[1746576904714,2.78603,1820.7,1820.6,1.6854]
[1746576904908,2.78606,1820.7,1820.6,1.09859]
[1746576905316,1.6875,1820.7,1820.6,1.09859]
[1746576905518,1.6875,1820.7,1820.6,41.89859]
[1746576905715,1.6875,1820.7,1820.6,43.58969]
[1746576906221,2.74528,1821.4,1820.8,2.74616]
[1746576906416,0.8459,1821.0,1820.9,1.09841]
[1746576908819,1.94425,1821.0,1820.9,1.09841]
[1746576909517,0.8459,1821.0,1820.9,5.15741]
[1746576909711,0.8459,1821.0,1820.9,6.92291]
[1746576910721,0.8204,1821.3,1821.2,1.09823]
[1746576910920,1.6746,1821.3,1821.2,1.09823]
[1746576913025,1.6746,1821.3,1821.2,5.15723]
[1746576913219,1.6746,1821.3,1821.2,6.93033]
[1746576913727,2.77277,1821.3,1821.2,6.93033]
[1746576913927,1.6746,1821.3,1821.2,6.93033]
[1746576914127,1.6746,1821.3,1821.2,4.059]
[1746576914327,1.6746,1821.3,1820.9,7.2668]
[1746576914527,1.09828,1821.2,1821.1,4.30606]
[1746576914727,1.09828,1821.2,1821.1,45.10606]
[1746576915031,2.79013,1821.2,1821.1,49.62906]
[1746576915423,2.79013,1821.2,1821.1,44.0078]
[1746576915623,2.79013,1821.2,1821.1,40.8]
[1746576917528,2.79013,1821.2,1821.1,41.89829]
[1746576917729,2.79013,1821.2,1821.1,40.8]
[1746576918029,2.79013,1821.2,1821.1,41.89829]
[1746576918222,1.6919,1821.2,1821.1,41.89829]
[1746576918424,0.00790326,1821.3,1821.2,1.09823]
[1746576918629,0.00790326,1821.3,1821.2,5.96683]
[1746576918833,0.00790326,1821.3,1821.2,7.60913]
[1746576920534,0.00790326,1821.3,1821.2,11.66813]
[1746576925133,0.00790326,1821.3,1821.2,6.78993]
[1746576925428,0.00790326,1821.3,1821.2,5.96683]
[1746576928035,0.86060326,1821.3,1821.2,5.96683]
[1746576928237,2.52550326,1821.3,1821.2,5.96683]
[1746576928729,0.00790326,1821.3,1821.2,5.96683]
[1746576929531,0.00790326,1821.3,1821.2,15.02583]
[1746576929723,1.09764,1822.2,1821.8,1.09787]
[1746576929932,2.5908,1822.4,1822.0,3.2078]
[1746576930129,3.2078,1822.6,1822.0,8.1003]
[1746576930325,1.09755,1822.4,1822.2,1.09758]
[1746576930532,1.09755,1822.4,1822.3,1.6878]
[1746576931135,3.2078,1822.6,1822.3,40.8]
[1746576931337,5.47364722,1822.7,1822.6,1.09738]
[1746576931527,5.47364722,1822.7,1822.6,8.81918]
[1746576931730,5.47364722,1822.7,1822.6,8.81818]
[1746576931933,5.47364722,1822.7,1822.6,44.0078]
[1746576932239,5.47364722,1822.7,1822.6,51.30598]
[1746576932531,11.57096722,1822.7,1822.6,40.8]
[1746576932735,18.53986722,1822.7,1822.6,40.8]
[1746576932940,19.34996722,1822.7,1822.6,40.8]
[1746576933132,11.57096722,1822.7,1822.6,40.8]
[1746576933433,5.47364722,1822.7,1822.6,45.10518]
[1746576933830,5.47364722,1822.7,1822.6,45.92258]
[1746576934933,5.47364722,1822.7,1822.6,42.71478]
[1746576935240,6.09732,1822.7,1822.6,40.8]
[1746576935438,13.06422,1822.7,1822.6,40.8]
[1746576935741,8.06422,1822.7,1822.6,40.8]
[1746576936135,13.06422,1822.7,1822.6,40.8]
[1746576936440,1.09756,1822.3,1822.2,3.2078]
[1746576936739,0.8266,1822.6,1822.2,3.2078]
[1746576936939,1.6191,1822.6,1822.5,1.09744]
[1746576937237,4.509,1822.8,1822.4,3.2078]
[1746576937535,1.09744,1822.5,1822.4,4.8179]
[1746576937741,1.09744,1822.5,1822.4,6.1221]
[1746576938139,1.09744,1822.5,1822.4,46.9221]
[1746576938339,2.71654,1822.5,1822.4,46.9221]
[1746576939236,2.71654,1822.5,1822.4,40.8]
[1746576939543,1.09762,1822.2,1822.1,9.4635]
[1746576939740,1.09762,1822.2,1822.1,6.2557]
[1746576940041,1.09773,1822.1,1822.0,4.512]
[1746576940340,1.09768,1822.1,1822.0,4.512]
[1746576940543,1.09774,1822.0,1821.9,10.56126]
[1746576940735,2.79634,1822.0,1821.9,4.9515]
[1746576940936,7.7198,1822.5,1821.9,4.9515]
[1746576941139,1.6986,1822.3,1821.9,4.9515]
[1746576941342,1.6986,1822.3,1822.1,1.09768]
[1746576941646,1.09762,1822.2,1822.1,1.09768]
[1746576942032,1.09762,1822.2,1822.0,1.0977]
[1746576942233,1.09762,1822.2,1822.0,2.7633]
[1746576942435,1.09768,1822.1,1822.0,2.7633]
[1746576942634,2.75818,1822.1,1822.0,2.7633]
[1746576942835,2.75818,1822.1,1822.0,1.6656]
[1746576943137,1.0978,1821.9,1821.8,4.059]
[1746576943338,1.0978,1822.0,1821.8,5.15681]
[1746576943541,6.9694,1822.1,1821.9,1.0978]
[1746576943742,1.09774,1822.0,1821.9,2.7634]
[1746576944034,1.09774,1822.0,1821.9,1.6656]
[1746576944240,6.40661,1822.1,1822.0,1.09774]
[1746576944443,8.06711,1822.1,1822.0,1.09774]
[1746576944641,5.60665,1822.2,1822.1,1.09766]
[1746576944840,5.60667,1822.2,1822.0,1.0977]
[1746576945042,4.509,1822.2,1821.8,4.059]
[1746576945243,1.0978,1821.9,1821.8,6.75715]
[1746576945435,1.0978,1821.9,1821.8,5.6593]
[1746576946342,1.09774,1822.0,1821.9,1.0978]
[1746576946532,2.4578,1822.1,1821.9,1.6003]
[1746576946736,2.4578,1822.1,1822.0,1.09774]
[1746576946937,1.09764,1822.2,1822.1,1.09768]
[1746576947142,1.09764,1822.2,1822.1,2.69798]
[1746576947447,5.60664,1822.2,1822.1,2.69798]
[1746576948244,0.8422,1822.3,1822.2,1.09762]
[1746576948438,6.9742,1822.3,1822.2,2.77002]
[1746576948637,1.09756,1822.3,1822.2,1.6724]
[1746576948848,1.623,1822.3,1822.2,2.77002]
[1746576949142,2.72056,1822.3,1822.2,2.77002]
[1746576949342,2.72056,1822.3,1822.2,1.6724]
[1746576949539,2.72056,1822.3,1822.2,2.77002]
[1746576949744,1.09762,1822.2,1822.1,1.91254]
[1746576949943,1.09768,1822.1,1822.0,40.8]
[1746576950240,1.09768,1822.1,1822.0,41.89774]
[1746576950441,4.514,1822.1,1822.0,41.89774]
[1746576950745,5.61168,1822.1,1822.0,40.8]
[1746576950941,7.27368,1822.1,1822.0,40.8]
[1746576951142,1.662,1822.1,1822.0,41.89774]
[1746576951344,4.513,1822.1,1822.0,43.55934]
[1746576952446,5.61068,1822.1,1822.0,43.55934]
[1746576952656,7.27268,1822.1,1822.0,43.55934]
[1746576953637,6.175,1822.1,1822.0,43.55934]
[1746576953839,1.662,1822.1,1822.0,43.55934]
[1746576954646,9.3431,1822.4,1822.0,42.4616]
[1746576954942,4.509,1822.2,1822.1,2.71144]
[1746576955144,5.60662,1822.2,1822.1,2.71144]
[1746576955341,4.509,1822.2,1822.1,2.71144]
[1746576955542,5.60662,1822.2,1822.1,2.71144]
[1746576956641,5.60662,1822.2,1822.1,1.6138]
[1746576956942,5.60662,1822.2,1822.1,2.71148]
[1746576958648,2.71981,1822.3,1822.2,1.09762]
[1746576958849,7.22881,1822.3,1822.2,2.82602]
[1746576959148,7.22881,1822.3,1822.2,1.7284]
[1746576959751,1.09768,1822.1,1822.0,41.6738]
[1746576960046,1.09768,1822.1,1822.0,44.48594]
[1746576961056,1.09768,1822.1,1822.0,42.5144]
[1746576961246,1.09774,1822.0,1821.9,3.2078]
[1746576961445,1.0978,1821.9,1821.8,6.5883]
[1746576961852,1.0978,1821.9,1821.8,47.3883]
[1746576962149,1.0978,1821.9,1821.8,48.48616]
[1746576962652,1.09787,1821.8,1821.7,5.12511]
[1746576962953,1.09787,1821.8,1821.7,4.0272]
[1746576963145,1.09787,1821.8,1821.7,44.8272]
[1746576963445,1.09787,1821.8,1821.7,45.92513]
[1746576963649,3.2078,1822.3,1822.0,1.09768]
[1746576963951,1.09767,1822.2,1822.1,3.65206]
[1746576964149,1.09774,1822.0,1821.9,4.059]
[1746576964345,1.09774,1822.0,1821.9,5.8085]
[1746576964851,2.78424,1822.0,1821.9,5.8085]
[1746576965057,1.09787,1821.8,1821.7,44.8272]
[1746576965440,8.81467,1821.8,1821.7,40.8]
[1746576965646,1.09809,1821.5,1821.4,0.8049]
[1746576966053,1.09809,1821.5,1821.4,40.8]
[1746576966353,4.509,1821.5,1821.4,1.09811]
[1746576966553,4.509,1821.5,1821.3,3.2078]
[1746576966554,2.74452,1822.0,1821.6,1.09796]
[1746576966754,1.0979,1821.8,1821.7,42.7495]
[1746576967255,1.0979,1821.8,1821.7,43.332]
[1746576968150,5.62685,1821.9,1821.7,44.42993]
[1746576968353,5.62685,1821.9,1821.8,1.6804]
[1746576968547,4.529,1821.9,1821.6,0.8246]
[1746576968754,1.09799,1821.6,1821.5,6.1944]
[1746576968948,1.09799,1821.6,1821.5,1.6804]
[1746576969150,1.09799,1821.6,1821.5,42.4804]
[1746576970457,2.71299,1821.6,1821.5,42.4804]
[1746576971054,1.09811,1821.4,1821.3,3.2078]
[1746576971258,1.09823,1821.2,1821.1,5.7917]
[1746576971651,1.09823,1821.2,1821.1,46.5917]
[1746576971952,1.09823,1821.2,1821.1,45.7495]
[1746576972159,1.9622,1821.3,1821.2,1.09823]
[1746576972359,1.0982,1821.3,1821.2,1.7603]
[1746576973051,1.09823,1821.2,1821.1,40.8]
[1746576973252,2.77533,1821.2,1821.1,40.8]
[1746576973450,7.33333,1821.2,1821.1,40.8]
[1746576974562,1.09841,1820.9,1820.8,13.02549985]
[1746576974957,1.09841,1820.9,1820.8,8.98709985]
[1746576975461,1.09841,1820.9,1820.8,1.7603]
[1746576975662,2.79811,1820.9,1820.8,42.5603]
[1746576976161,1.97399,1821.0,1820.8,43.65877]
[1746576976458,1.09839,1821.0,1820.9,1.7088]
[1746576978156,2.74999,1821.0,1820.9,1.7088]
[1746576978360,1.09841,1820.9,1820.8,40.8]
[1746576978659,1.09841,1820.9,1820.6,6.7099]
[1746576978660,1.09853,1820.7,1820.6,6.7099]
[1746576978866,1.09865,1820.5,1820.4,3.2078]
[1746576979068,1.09865,1820.5,1820.4,44.0078]
[1746576979957,5.4214,1820.8,1820.4,44.0078]
[1746576980258,5.65443,1820.9,1820.8,1.09847]
[1746576980454,1.09848,1820.8,1820.7,1.09848]
[1746576980666,5.65444,1820.9,1820.8,1.09847]
[1746576981366,1.09847,1820.8,1820.7,2.78199]
[1746576981661,4.556,1820.9,1820.7,1.6835]
[1746576981866,4.556,1820.9,1820.8,4.30627]
[1746576982065,1.09833,1821.1,1820.8,3.2078]
[1746576982269,8.17098,1821.2,1820.8,4.30623]
[1746576982457,1.09841,1820.9,1820.8,4.30623]
[1746576982658,1.09847,1820.8,1820.7,6.84099]
[1746576983275,1.09847,1820.8,1820.7,5.7425]
[1746576984161,1.09847,1820.8,1820.7,4.059]
[1746576984365,1.96977,1820.8,1820.7,4.059]
[1746576984573,3.66097,1820.8,1820.7,4.059]
[1746576986166,1.96977,1820.8,1820.7,4.059]
[1746576986371,1.09847,1820.8,1820.7,5.15753]
[1746576986773,1.09847,1820.8,1820.7,1.97133]
[1746576987377,1.09847,1820.8,1820.7,0.8728]
[1746576987678,1.09847,1820.8,1820.7,1.97133]
[1746576987884,14.40299,1821.0,1820.7,0.8728]
[1746576988070,1.09847,1820.8,1820.7,1.97131]
[1746576988582,1.09843,1820.9,1820.8,1.09844]
[1746576988877,1.09837,1821.0,1820.9,1.09841]
[1746576989680,1.09833,1821.1,1821.0,1.09835]
[1746576990877,1.09838,1821.0,1820.9,1.09838]
[1746576991579,1.09833,1821.1,1821.0,1.09833]
[1746576991779,1.09833,1821.1,1821.0,4.30613]
[1746576991981,1.09827,1821.2,1821.1,1.09827]
[1746576992178,1.09827,1821.2,1821.1,1.97537]
[1746576992485,2.74568,1821.2,1820.9,1.0984]
[1746576992675,1.09839,1821.0,1820.9,1.0984]
[1746576992881,1.0983,1821.1,1821.0,1.09831]
[1746576993582,1.09836,1821.0,1820.9,1.09836]
[1746576993777,1.09835,1821.1,1821.0,1.09832]
[1746576994480,1.09839,1821.0,1820.9,1.09838]
[1746576995085,1.09841,1820.9,1820.8,9.24233]
[1746576995684,1.09841,1820.9,1820.8,5.18333]
[1746576995887,1.0984,1821.0,1820.9,1.09838]
[1746576996185,1.09835,1821.1,1821.0,1.09835]
[1746576996585,1.09835,1821.0,1820.9,2.78796]
[1746576998380,1.09835,1821.0,1820.9,1.6896]
[1746576998887,1.6941,1821.1,1820.8,3.2078]
[1746576998888,1.09841,1820.9,1820.8,3.2078]
[1746576999384,4.43986,1821.1,1820.7,1.6562]
[1746576999385,1.09847,1820.8,1820.7,1.6562]
[1746576999782,5.65439,1821.0,1820.7,1.6562]
[1746576999981,6.87076,1821.2,1821.1,1.09829]
[1746577000180,1.09831,1821.1,1821.0,1.09832]
[1746577000578,1.09831,1821.1,1821.0,2.84012]
[1746577001992,1.09829,1821.1,1821.0,2.84012]
[1746577002184,1.09829,1821.1,1821.0,3.65322]
[1746577002488,0.8232,1821.2,1821.1,1.09829]
[1746577002489,1.92144,1821.2,1821.1,1.09829]
[1746577002689,1.92144,1821.2,1821.1,1.6325]
[1746577002892,1.09824,1821.2,1821.1,2.73079]
[1746577003092,1.09824,1821.2,1821.1,5.93859]
[1746577003290,2.83972,1821.3,1821.2,1.09823]
[1746577003591,2.83972,1821.3,1821.2,1.6325]
[1746577003788,1.09829,1821.1,1821.0,0.8131]
[1746577004093,1.09829,1821.1,1821.0,1.6325]
[1746577004590,1.09835,1821.0,1820.9,8.1304]
[1746577004778,3.62215,1821.0,1820.9,8.8993]
[1746577005178,3.62215,1821.0,1820.9,9.99771]
[1746577006492,3.62215,1821.0,1820.9,8.8993]
[1746577007092,3.62215,1821.0,1820.9,9.99771]
[1746577007388,3.62215,1821.0,1820.9,7.2668]
[1746577007590,4.46745,1821.0,1820.9,7.2668]
[1746577007893,4.46745,1821.0,1820.9,3.2078]
[1746577008586,1.09841,1820.9,1820.8,1.7038]
[1746577008788,2.72561,1820.9,1820.8,2.80227]
[1746577009295,1.89919,1821.0,1820.9,1.09841]
[1746577009496,0.8008,1821.0,1820.9,2.74881]
[1746577009790,1.89915,1821.0,1820.9,2.74881]
[1746577014198,3.67025,1821.0,1820.9,2.74881]
[1746577016198,3.67025,1821.0,1820.9,1.6504]
[1746577016394,1.09847,1820.8,1820.7,5.16987]
[1746577016592,2.81405,1820.9,1820.8,1.09847]
[1746577016791,2.81405,1820.9,1820.8,2.80637]
[1746577018501,1.09847,1820.8,1820.7,0.8636]
[1746577018703,2.81687,1820.8,1820.7,0.8636]
[1746577018896,2.81687,1820.8,1820.7,1.96213]
[1746577019099,1.09844,1820.9,1820.8,1.09841]
[1746577019290,1.09844,1820.9,1820.8,2.82741]
[1746577020196,1.09844,1820.9,1820.8,6.03521]
[1746577020398,5.61335,1821.0,1820.9,1.09841]
[1746577020700,5.61335,1821.0,1820.9,2.433]
[1746577020900,5.61335,1821.0,1820.9,3.53141]
[1746577021401,5.32726815,1821.2,1821.0,1.09835]
[1746577021605,3.63046815,1821.2,1821.1,1.09829]
[1746577021902,3.63046815,1821.2,1821.1,5.17209]
[1746577022402,3.63046815,1821.2,1821.1,6.78419]
[1746577023099,4.72869815,1821.2,1821.1,6.78419]
[1746577023408,4.72869815,1821.2,1821.1,2.4781]
[1746577023604,3.63046815,1821.2,1821.1,6.78419]
[1746577024402,4.72869815,1821.2,1821.1,6.78419]
[1746577024603,2.81933,1821.2,1821.1,5.6859]
[1746577025194,2.81933,1821.2,1821.1,4.8199]
[1746577025405,1.09835,1821.0,1820.9,5.7602]
[1746577025600,1.09835,1821.0,1820.9,3.3231]
[1746577026001,1.09835,1821.0,1820.9,1.6219]
[1746577026201,1.09841,1820.9,1820.8,7.22679985]
[1746577026401,1.09841,1820.9,1820.8,8.32526985]
[1746577026602,1.09841,1820.9,1820.8,9.94716985]
[1746577027007,1.09841,1820.9,1820.8,8.84869985]
[1746577028506,2.81949,1821.0,1820.9,1.09841]
[1746577028803,2.81949,1821.0,1820.9,1.7251]
[1746577030804,2.81949,1821.0,1820.7,4.30629]
[1746577031008,1.09847,1820.8,1820.7,5.95979]
[1746577032204,1.09847,1820.8,1820.7,4.8613]
[1746577032510,1.09853,1820.7,1820.6,0.8803]
[1746577032708,1.09853,1820.7,1820.6,2.5863]
[1746577032910,1.09859,1820.6,1820.5,3.2078]
[1746577033105,3.54759,1820.6,1820.5,3.2078]
[1746577033307,3.54759,1820.6,1820.5,4.9138]
[1746577033603,3.54759,1820.6,1820.5,1.706]
[1746577033804,1.09865,1820.5,1820.4,7.22679985]
[1746577034001,3.55045,1820.5,1820.4,7.22679985]
[1746577034203,3.55045,1820.5,1820.4,48.02679985]
[1746577034408,3.55045,1820.5,1820.4,49.73279985]
[1746577034609,8.06445,1820.5,1820.4,48.02679985]
[1746577034810,8.06445,1820.5,1820.4,7.22679985]
[1746577035008,13.06445,1820.5,1820.4,7.22679985]
[1746577035203,17.58845,1820.5,1820.4,7.22679985]
[1746577035507,17.58845,1820.5,1820.4,5.95438985]
[1746577035709,17.68944007,1820.5,1820.4,2.64373985]
[1746577036409,17.68944007,1820.5,1820.4,1.22440985]
[1746577036609,17.68944007,1820.5,1820.4,9.85e-06]
[1746577038111,1.09889,1820.1,1820.0,1.7175]
[1746577038419,5.61389,1820.1,1820.0,1.7175]
[1746577038620,1.09901,1819.9,1819.8,10.16226332]
[1746577038911,5.61395,1820.1,1819.9,1.09901]
[1746577039105,5.61395,1820.1,1820.0,1.6583]
[1746577041312,5.61395,1820.1,1820.0,2.75725]
[1746577041512,5.61395,1820.1,1820.0,1.6583]
[1746577042814,5.61395,1820.1,1820.0,2.75725]
[1746577043014,3.2078,1820.3,1820.2,1.09883]
[1746577043215,3.2078,1820.3,1820.1,3.3281]
[1746577043520,4.30657,1820.3,1820.2,1.673]
[1746577043711,2.80107,1820.3,1820.2,1.673]
[1746577046120,1.09883,1820.2,1820.1,0.8262]
[1746577046416,2.86753,1820.2,1820.1,1.09889]
[1746577046719,4.30661,1820.3,1820.2,1.09883]
[1746577046924,4.30661,1820.3,1820.2,2.85013]
[1746577047119,4.30661,1820.3,1820.2,3.71933]
[1746577047325,1.09881,1820.3,1820.2,3.71933]
[1746577047927,9.09405,1820.4,1820.3,1.09877]
[1746577048222,5.6227,1820.5,1820.4,1.09871]
[1746577048620,5.61361,1820.6,1820.5,1.09865]
[1746577048819,1.09861,1820.6,1820.5,1.09865]
[1746577049224,1.09861,1820.6,1820.5,2.84965]
[1746577050126,1.09859,1820.6,1820.5,2.84965]
[1746577050725,7.7228,1820.7,1820.5,1.751]
[1746577050917,8.82133,1820.7,1820.6,1.6972]
[1746577051128,4.30633,1820.7,1820.6,1.6972]
[1746577051427,4.30633,1820.7,1820.6,42.4972]
[1746577051629,4.72896815,1820.8,1820.7,1.09853]
[1746577051829,3.63046815,1820.8,1820.7,2.80743]
[1746577052330,1.09846,1820.9,1820.8,1.09847]
[1746577052629,1.09846,1820.9,1820.8,2.5766]
[1746577053632,3.63046815,1821.2,1821.0,1.09833]
[1746577053834,4.72873815,1821.2,1821.1,1.7089]
[1746577054132,6.49113815,1821.2,1821.1,1.7089]
[1746577054431,7.29223815,1821.2,1821.1,1.7089]
[1746577055832,3.66177,1821.2,1821.1,1.7089]
[1746577057028,3.66177,1821.2,1821.1,2.80719]
[1746577057230,1.09827,1821.2,1821.1,2.80719]
[1746577057732,11.476,1821.4,1821.1,2.80714]
[1746577057933,1.09817,1821.3,1821.2,2.4522]
[1746577058433,1.09817,1821.3,1821.2,43.2522]
[1746577059523,1.09817,1821.3,1821.2,44.35043]
[1746577059722,10.97115,1821.4,1821.2,44.35043]
[1746577059927,10.97115,1821.4,1821.3,2.4709]
[1746577060331,4.514,1821.4,1821.3,3.56907]
[1746577060534,5.61211,1821.4,1821.3,3.56907]
[1746577061434,1.09811,1821.4,1821.3,3.56907]
[1746577061932,1.09811,1821.4,1821.3,2.4709]
[1746577062339,1.09811,1821.4,1821.3,3.56907]
[1746577062537,1.09811,1821.4,1821.3,2.4709]
[1746577063238,1.09811,1821.4,1821.3,3.56907]
[1746577063435,1.09811,1821.4,1821.3,2.4709]
[1746577064239,2.84621,1821.4,1821.3,2.4709]
[1746577064432,2.84621,1821.4,1821.3,1.641]
[1746577066034,1.09829,1821.1,1821.0,0.8063]
[1746577066231,1.09829,1821.1,1821.0,2.411]
[1746577066532,1.09835,1821.0,1820.9,3.2078]
[1746577066744,5.61035,1821.0,1820.9,3.2078]
[1746577066942,1.09841,1820.9,1820.8,1.6826]
[1746577067144,3.62341,1820.9,1820.8,1.6826]
[1746577069038,1.09841,1820.9,1820.8,1.6826]
[1746577069544,1.09841,1820.9,1820.8,2.78107]
[1746577069738,1.09841,1820.9,1820.8,1.6826]
[1746577070040,1.09832,1821.1,1820.8,2.4832]
[1746577070238,1.09832,1821.1,1820.9,1.09836]
[1746577070439,1.09832,1821.1,1821.0,2.4943]
[1746577070846,1.09841,1820.9,1820.8,0.8006]
[1746577071046,1.09841,1820.9,1820.8,1.6683]
[1746577071543,2.84201,1820.9,1820.8,1.6683]
[1746577072943,2.84201,1820.9,1820.8,2.76677]
[1746577073148,2.79813,1821.1,1820.8,1.6683]
[1746577073448,10.96721,1821.3,1821.0,3.2078]
[1746577073642,1.09823,1821.2,1821.1,2.4806]
[1746577074050,1.09823,1821.2,1821.1,3.57889]
[1746577074246,1.94122,1821.3,1821.1,3.57889]
[1746577074545,1.94122,1821.3,1821.2,1.6694]
[1746577074739,4.72852815,1821.5,1821.4,1.09811]
[1746577075445,4.72852815,1821.5,1821.4,2.71421]
[1746577075645,4.72852815,1821.5,1821.4,1.6161]
[1746577076047,4.72852815,1821.5,1821.4,2.71421]
[1746577076248,4.72852815,1821.5,1821.4,1.6161]
[1746577077446,1.09817,1821.3,1821.2,3.2078]
[1746577077841,1.09817,1821.3,1821.2,4.8239]
[1746577078047,2.86737,1821.3,1821.2,1.6161]
[1746577078548,1.6624,1821.4,1821.3,1.09817]
[1746577078549,2.76056,1821.4,1821.3,1.09817]
[1746577078751,1.09816,1821.4,1821.3,1.09817]
[1746577079042,1.09816,1821.4,1821.3,0.8835]
[1746577079247,1.09816,1821.4,1821.3,2.513]
[1746577079449,1.09816,1821.4,1821.3,1.6295]
[1746577081344,1.09823,1821.2,1821.1,6.2057]
[1746577081642,1.09823,1821.2,1821.1,2.5786]
[1746577082051,1.90513,1821.2,1821.1,2.5786]
[1746577082249,3.65143,1821.2,1821.1,1.7674]
[1746577082741,1.09835,1821.0,1820.9,0.8621]
[1746577082941,1.09835,1821.0,1820.9,1.96051]
[1746577083146,1.09835,1821.0,1820.9,0.8621]
[1746577083749,1.09841,1820.9,1820.8,0.8085]
[1746577084151,1.09847,1820.8,1820.7,41.6621]
[1746577084448,1.09847,1820.8,1820.7,42.76063]
[1746577084653,1.09847,1820.8,1820.7,41.6621]
[1746577085048,1.09847,1820.8,1820.7,43.3799]